Cogmind - Beta 14 @@@ ROGUE MODE // 2025.03.30 @ 21:49:39 Player: notverysmot Result: Destroyed by S-10 Pest with Light Assault Rifle Performance ------------- Evolutions (1) 500 Regions Visited (2) 400 Robots Destroyed (20) 100 Value Destroyed (421) 421 Prototype IDs (1) 20 Alien Tech Used (0) 0 Bonus (11) 11 TOTAL SCORE: 1452 Bonus ------- High Alert Combat Kills 11 Cogmind --------- Core Integrity 0/400 Matter 300/300 Energy 75/100 System Corruption 0% Temperature Warm (171) Movement Rolling (100) Location -9/Materials Parts ------- > --- POWER (1) -------- (None) > --- PROPULSION (3) --- Compact Wheel > --- UTILITY (3) ------ Small Storage Unit > --- WEAPON (2) ------- Improved EM Shotgun Particle Cannon > --- INVENTORY (8) ---- Light Ion Engine Light Ion Engine Sensor Array ECM Suite Beam Rifle Assault Rifle Light Assault Rifle Light Assault Rifle Peak State ------------ > --- POWER ------------ Light Ion Engine > --- PROPULSION ------- Compact Wheel Compact Wheel Flight Unit > --- UTILITY ---------- Small Storage Unit > --- WEAPON ----------- Improved EM Shotgun Particle Cannon > --- INVENTORY -------- Light Ion Engine Light Ion Engine Sensor Array ECM Suite Assault Rifle Light Assault Rifle Light Assault Rifle Light Assault Rifle [Rating: 10] Favorites ----------- Power Light Ion Engine Engine Light Ion Engine Propulsion Compact Wheel Wheel Compact Wheel Flight Unit Flight Unit Utility Small Storage Unit Storage Small Storage Unit Weapon Light Assault Rifle Energy Gun Medium Laser Energy Cannon Particle Cannon Ballistic Gun Light Assault Rifle Build | -11 -10 -9 ------- Run | Yrd Mat Mat Slots Evolved 2 | . . 2 Power . | . . . Propulsion 1 | . . 1 Utility 1 | . . 1 Weapon . | . . . Parts Attached 23 | 6 4 13 Power 2 | 1 . 1 Engine 2 | 1 . 1 Core . | . . . Reactor . | . . . Propulsion 8 | 2 2 4 Treads . | . . . Leg . | . . . Wheel 4 | 2 . 2 Hover . | . . . Flight 4 | . 2 2 Utility 1 | 1 . . Device . | . . . Storage 1 | 1 . . Processor . | . . . Hackware . | . . . Protection . | . . . Artifact . | . . . Weapon 12 | 2 2 8 Energy Gun 4 | 1 . 3 Energy Cannon 1 | . . 1 Ballistic Gun 7 | 1 2 4 Ballistic Cannon . | . . . Launcher . | . . . Special Weapon . | . . . Impact Weapon . | . . . Slashing Weapon . | . . . Piercing Weapon . | . . . Special Melee Weapon . | . . . Unidentified Prototypes 1 | . . 1 Parts Lost 8 | . . 8 Power 2 | . . 2 Propulsion 5 | . . 5 Utility . | . . . Weapon 1 | . . 1 Highest Loss Streak 5 | . . 5 To Critical Strikes . | . . . Average Slot Usage (%) 62 | . 77 57 Engine 10 | . 14 9 Wheel 13 | . 16 12 Flight 9 | . 12 8 Storage 11 | . 14 11 Energy Gun 5 | . 9 3 Energy Cannon 4 | . . 6 Ballistic Gun 7 | . 11 6 Peak Build Rating 10 | 6 6 10 Average Rating 5 | 3 5 6 On Entrance 3 | . 6 4 Naked Turns . | . . . Heaviest Build 15 | 12 12 15 Greatest Support 32 | 26 26 32 Greatest Overweight (x) 3 | . . 3 Average Overweight (x) . | . . . Largest Inventory Capacity 8 | 8 8 8 Average Capacity 7 | 6 8 8 Most Carried 8 | 5 8 8 Average Carried 6 | 2 4 7 Final Capacity 8 | 8 8 8 Final Carried 8 | 2 8 8 Class Distribution -------------------- 100% | Mutant Dominant Class ---------------- Mutant | -10/Materials Mutant | -9/Materials Resources | -11 -10 -9 ----------- Run | Yrd Mat Mat Matter Collected 469 | 250 28 191 Remotely . | . . . Salvage Created 655 | . 44 611 Parts 53 | . 6 47 Haulers Intercepted 1 | . . 1 Recyclers Shooed . | . . . Parts Field Recycled . | . . . Retrieved Matter . | . . . Parts Self-Destructed . | . . . Prevented . | . . . Kills | -11 -10 -9 ------- Run | Yrd Mat Mat Combat Hostiles Destroyed 17 | . 3 14 Guns 13 | . 3 10 Cannons 4 | . . 4 Classes Destroyed 5 | . 1 4 Worker 2 | . . 2 Hauler 1 | . . 1 Swarmer 9 | . 3 6 Grunt 3 | . . 3 Sentry 5 | . . 5 Best Kill Streak 4 | . 3 4 Combat Bots Only 4 | . 3 4 Max Kills in Single Turn 2 | . 1 2 Gunslinging . | . . . Exploded . | . . . Melee . | . . . Uniques/NPCs Destroyed . | . . . Combat | -11 -10 -9 -------- Run | Yrd Mat Mat Hostile Shots Fired 148 | . 12 136 Missed 49 | . 5 44 Damage Taken 1081 | . 55 1026 Core 408 | . 7 401 Absorbed by Shields . | . . . Core Remaining (%) 98 | 100 97 . Volleys Fired 54 | . 7 47 Largest 2 | . 2 2 Hottest 113 | . 70 113 Shots Fired 97 | . 14 83 Gun 73 | . 14 59 Cannon 24 | . . 24 Launcher . | . . . Special . | . . . Kinetic 45 | . 7 38 Thermal 41 | . 7 34 Explosive . | . . . Electromagnetic 11 | . . 11 Robot Hit Streak 7 | . 1 7 Robot Miss Streak 4 | . 4 2 Penetration Max . | . . . Secondary Targets 2 | . 1 1 Max Gunslinging Chain 1 | . 1 1 Shots Hit Robots 59 | . 4 55 Core Hits 26 | . 3 23 Critical Kills . | . . . Critical Parts Destroyed . | . . . Critical Strikes 3 | . . 3 Burn 3 | . . 3 Melee Attacks . | . . . Impact . | . . . Slashing . | . . . Piercing . | . . . Sneak Attacks . | . . . Combat Hostiles . | . . . Follow-up Attacks . | . . . Damage Inflicted 810 | . 49 761 Guns 527 | . 49 478 Cannons 283 | . . 283 Explosions . | . . . Melee . | . . . Ramming . | . . . Kinetic 239 | . . 239 Thermal 420 | . 49 371 Explosive . | . . . Electromagnetic 151 | . . 151 Impact . | . . . Slashing . | . . . Piercing . | . . . Highest Corruption . | . . . Average Corruption . | . . . Corruption Purged . | . . . Corruption Blocked . | . . . Overload Shots . | . . . Overflow Damage . | . . . Projectiles . | . . . Explosions . | . . . Melee . | . . . Knockbacks . | . . . Impact . | . . . Kinetic . | . . . Secondary . | . . . Self-Inflicted Damage . | . . . Shots . | . . . Rammed . | . . . Targets Rammed . | . . . Kicked . | . . . Crushed . | . . . Highest Temperature 228 | . 63 228 Average Temperature 56 | . 31 61 Received Heat Transfer 333 | . . 333 Siege Activations . | . . . Robots Corrupted . | . . . Combat Hostiles . | . . . Parts Fried . | . . . Impact Corruptions . | . . . Robots Melted . | . . . Combat Hostiles . | . . . Parts Melted . | . . . Heat Transferred 1147 | . 148 999 Parts Sabotaged . | . . . Parts Stolen . | . . . Parts Stripped . | . . . Power Chain Reactions . | . . . Alert | -11 -10 -9 ------- Run | Yrd Mat Mat Peak Influence 417 | . 141 417 Initial 59 | . . 59 Average 178 | . 57 237 Maximum Alert Level 2 | . . 2 Low Security (%) 45 | 100 100 20 Level 1 51 | . . 74 Level 2 3 | . . 4 Level 3 . | . . . Level 4 . | . . . Level 5 . | . . . High Security . | . . . Max Security . | . . . Squads Dispatched 2 | . 1 1 Investigation . | . . . Extermination . | . . . Reinforcement 2 | . 1 1 Assault . | . . . Garrison . | . . . Intercept . | . . . Searches Triggered . | . . . Construction Impeded . | . . . Haulers Reinforced . | . . . Active Scanning Responses . | . . . Cargo Convoy Interrupts . | . . . Stealth | -11 -10 -9 --------- Run | Yrd Mat Mat Distress Signals 4 | . . 4 Communications Jammed . | . . . Distress Signals . | . . . Times Spotted 30 | . 6 24 Peak Tracking Total 9 | . 4 9 Tactical Retreats 3 | . 1 2 Traps | -11 -10 -9 ------- Run | Yrd Mat Mat Traps Triggered . | . . . Indirectly . | . . . Trap Hack Attempts . | . . . Triggered . | . . . Disarmed . | . . . Reprogrammed . | . . . Reused . | . . . Traps Extracted . | . . . Installed . | . . . Triggered . | . . . Machines | -11 -10 -9 ---------- Run | Yrd Mat Mat Machines Disabled . | . . . Max in Single Turn . | . . . Machines Repaired . | . . . Machines Dismantled . | . . . Machines Sabotaged . | . . . Overloaded Fab Kills . | . . . Hacking | -11 -10 -9 --------- Run | Yrd Mat Mat Machines Accessed 2 | . 2 . Terminals 2 | . 2 . Fabricators . | . . . Repair Stations . | . . . Recycling Units . | . . . Scanalyzers . | . . . Garrison Access . | . . . Total Hacks 2 | . 2 . Successful 2 | . 2 . Failed . | . . . Catastrophic . | . . . Database Lockouts . | . . . Manual . | . . . Terminals 2 | . 2 . Fabricators . | . . . Repair Stations . | . . . Recycling Units . | . . . Scanalyzers . | . . . Garrison Access . | . . . Terminal Hacks 2 | . 2 . Hauler Manifests 1 | . 1 . Zone Layout 1 | . 1 . Fabricator Hacks . | . . . Repair Station Hacks . | . . . Recycling Unit Hacks . | . . . Scanalyzer . | . . . Garrison Access Hacks . | . . . Unauthorized Hacks . | . . . Terminals . | . . . Fabricators . | . . . Repair Stations . | . . . Recycling Units . | . . . Scanalyzers . | . . . Garrison Access . | . . . Data Cores Recovered . | . . . Used . | . . . Hacking Detections . | . . . Full Trace Events . | . . . Feedback Events . | . . . Feedback Blocked . | . . . Robot Schematics Acquired . | . . . Robots Built . | . . . Authchips . | . . . Time . | . . . Total Robot Build Rating . | . . . Part Schematics Acquired . | . . . Parts Built . | . . . Authchips . | . . . Time . | . . . Total Part Build Rating . | . . . Parts Repaired . | . . . Time . | . . . Parts Recycled . | . . . Recycled Matter . | . . . Retrieved Matter . | . . . Retrieved Components . | . . . Parts Scanalyzed . | . . . Part Schematics Acquired . | . . . Parts Damaged . | . . . Bothacking | -11 -10 -9 ------------ Run | Yrd Mat Mat Used RIF Installer . | . . . Robots Hacked . | . . . Non-combat . | . . . Combat . | . . . Robot Hacks Applied . | . . . Relay Couplers Released . | . . . Fabnet Peak Effective % . | . . . Robots Rewired . | . . . Allies Hacked . | . . . Hacks Repelled . | . . . Allies | -11 -10 -9 -------- Run | Yrd Mat Mat Total Allies . | . . . Largest Group . | . . . Highest-Rated Group . | . . . Highest-Rated Ally . | . . . Total Orders . | . . . Ally Attacks . | . . . Total Damage . | . . . Kills . | . . . Allies Corrupted . | . . . Allies Melted . | . . . Intel | -11 -10 -9 ------- Run | Yrd Mat Mat Robot Analysis Total . | . . . Derelict Logs Recovered . | . . . Drone Launches . | . . . Drone Recoveries . | . . . Exploration | -11 -10 -9 ------------- Run | Yrd Mat Mat Turns Passed 604 | 40 144 420 Spaces Moved 497 | 32 188 277 Core 18 | 2 . 16 Treads . | . . . Legs . | . . . Wheels 256 | 30 64 162 Hover . | . . . Flight 223 | . 124 99 Fastest Speed 37 | 50 37 37 Average Speed 79 | 84 55 96 Slowest Speed 200 | 90 90 200 Overloaded Moves . | . . . Propulsion Burnouts . | . . . Robots Hopped 4 | . 4 . Cave-ins Triggered . | . . . Exploration Rate (%) 25 | 3 46 27 Regions Visited 2 Branch Regions . Pre-discovered Areas . | . . . Known Exits Taken . | . . . Unknown Exits Taken 2 | 1 1 . Scrap Searched . | . . . Spaces Dug . | . . . Terrain Destroyed . | . . . Melee . | . . . Projectile . | . . . AOE . | . . . Terrain Rammed . | . . . Walls Destroyed . | . . . Machines Disabled . | . . . Actions | -11 -10 -9 --------- Run | Yrd Mat Mat Total 610 | 43 211 356 Wait 9 | . 5 4 Move 487 | 31 179 277 Hop 4 | . 4 . Pick Up 20 | 6 6 8 Fast Attach 6 | 2 . 4 Attach 14 | 4 2 8 Detach 7 | . 4 3 Swap 3 | . 2 1 Drop 6 | . 2 4 Fire 54 | . 7 47 Melee . | . . . Ram . | . . . Kick . | . . . Crush . | . . . Escape Stasis . | . . . Rewire . | . . . Trap . | . . . Miscellaneous . | . . . Route ------- -11/Scrapyard -10/Materials (discovered 2 exits: [*Mat] / [*Min]) -9/Materials History --------- Turn | Location | Event 14 | -11/Scrapyard | Discovered new exit (range 16) 41 | -11/Scrapyard | Entered Materials 150 | -10/Materials | Discovered new exit (range 7) 175 | -10/Materials | Discovered new exit (range 16) 185 | -10/Materials | Entered another Materials area 185 | -9/Materials | Evolved 2 slots: Propulsion x1, Utility x1 241 | -9/Materials | Core integrity fell below 50% 276 | -9/Materials | Lost 5 parts (1p3n1w) 338 | -9/Materials | Build established: Mutant 514 | -9/Materials | Core integrity fell below 20% 605 | -9/Materials | Destroyed by S-10 Pest with Light Assault Rifle Last Messages --------------- 00514_ Y-45 Defender destroyed. 00521_ Dropped Lgt. Assault Rifle. 00521_ Acquired Beam Rifle. 00529_ K-01 Serf destroyed. 00540_ K-01 Serf collects debris. 00559_ Flight Unit destroyed. 00562_ Y-45 Defender destroyed. 00569_ Acquired 5 matter. 00575_ U-05 Engineer builds a Door. 00587_ ALERT: Hostiles spotted, dispatching reinforcements to Terminal M002. 00593_ W-16 Scout sends out distress signal. 00596_ Com. Wheel destroyed. 00597_ S-10 Pest destroyed. 00597_ W-16 Scout sends out distress signal. 00600_ Y-45 Defender destroyed. 00603_ Lgt. Ion Engine destroyed. 00603_ K-01 Serf destroyed. 00603_ S-10 Pest destroyed. 00603_ Destroyed Flight Unit. Map ----- +----------------------------------------------------+ | ?????????????????????????????????????????????????? | | ?????????????????????????????????????????????????? | | ?????????????????????????????????????????????????? | | ?????????????????????????????????????????????????? | | ?????????????????????????????????????????????????? | | ?????????????????????????????????????????????????? | | ?????????????????????????????????????????????????? | | ?????????????????????????????????????????????????? | | ?????????????????????????????????????????????????? | | ?????????????????????????????????????????????????? | | ?????????????????????????????????????????????????? | | ?????????????????????????????????????????????????? | | ?????????????????????????????????????????????????? | | ????#######??????????????????????????????????????? | | ##### #??????????????????????????????????????? | | #??????????????????????????????????????? | | +??????????????????????????????????????? | | #??????????????????????????????????????? | | ##### #??????????????????????????????????????? | | #?#[ #??????????????????????????? ??????????? | | #?#%= #???????????????????????? ??????????? | | ###=!=######################## o ?????????? | | /!%[[ u ru w! [sg "??????????? | | ###[ % ==% ""?????????? | | =%#?## [s!* ????????? | | =#??# @ *%! ????????? | | "" #??# ########???????????????? | | "" #??## ##############+#####????????????????????? | | "" #???# #?????????# #????????????????????? | | #???# #?????????# """ #????????????????????? | | ####???# #?????????# """ #????????????????????? | | #??????# #?????????# """ #????????????????????? | | #??????# #?????????# #????????????????????? | | #??????# #?????????# "S #????????????????????? | | #??????? #?????????# """ #????????????????????? | | #??????? ??????????# "" #????????????????????? | | #??????? ??????????# ?????????????????????? | | #??????? ??????????#######???????????????????????? | | ###### #?????????????????????????????????????? | | +?????????????????????????????????????? | | ###### #?????????????????????????????????????? | | #???????????????????????????????????????????? | | #???????????????????????????????????????????? | | " " #???????????????????????????????????????????? | | "R" #???????????????????????????????????????????? | | """ #???????????????????????????????????????????? | | #???????????????????????????????????????????? | | ######???????????????????????????????????????????? | | ?????????????????????????????????????????????????? | | ?????????????????????????????????????????????????? | +----------------------------------------------------+ Best States ------------- Heat Dissipation 28 Energy Generation 10 Energy Capacity 125 Matter Stores 300 Matter Capacity 300 Sight Range 16 Terrain Scan Density 10 Evasion (%) 62 Item Schematics ----------------- None Robot Schematics ------------------ None Fabricated ------------ Nothing Alien Tech Used ----------------- None Achievements -------------- None Challenges ------------ None Game ------ Seed RingPotentialStripper Manual? 0 Play Time 00:09:48 Cumulative 12.1 hours Start 2025.03.30 @ 21:41:14 End 2025.03.30 @ 21:49:39 Sessions 1 Manual Loads 0 Difficulty Rogue Special Mode None Game No. 19 Rogue 15 Adventurer 4 Explorer 0 Win Type - Total 0 Types 0/0/0/0/0/0/0/0/0 Lore% 4 Gallery% 19 Achievement% 17 Wizard Run 0 Options --------- Layout 1 ASCII 0 Keyboard 0 Movement Numpad Keybinds 0 Fullscreen 1 Font 32/SmallcapsGlow Map View 50x35 Zoom Use 0% Tactical HUD 1 Map Filters NONE Filters NONE Steam 1 RUN: ab4be0df-3ce1-4bec-8b77-51dd806eef85